lending/lending_fUSD_20240621
["ID","MTS","AMOUNT","RATE_DAILY","PERIOD"]
[330076156,1718988654783,-760.76,0.00022191,4]
[330076157,1718988654792,-641.08,0.00022191,4]
[330076158,1718988654802,-858.96,0.00022191,4]
[330076159,1718988654812,-500.0,0.00022191,4]
[330076160,1718988654822,-500.0,0.00022191,4]
[330076161,1718988654832,-1384.61,0.00022191,4]
[330076162,1718988654845,-1163.62,0.00022191,4]
[330076163,1718988654854,-500.0,0.00022191,4]
[330076164,1718988654864,-500.0,0.00022191,4]
[330076165,1718988654875,-618.19,0.00022191,4]
[330076166,1718988654884,-764.69,0.00022191,4]
[330076167,1718988654894,-642.25020604,0.00022191,4]
[330076168,1718988654904,-1973.78,0.00022191,4]
[330076169,1718988654914,-1443.32,0.00022191,4]
[330076170,1718988654924,-500.0,0.00022191,4]
[330076171,1718988654934,-500.0,0.00022191,4]
[330076172,1718988654943,-782.9,0.00022191,4]
[330076173,1718988654953,-1138.65,0.00022191,4]
[330076174,1718988654964,-697.17,0.00022191,4]
[330076175,1718988654974,-1248.93,0.00022191,4]
[330076176,1718988654983,-500.0,0.00022191,4]
[330076177,1718988654993,-1980.15,0.00022191,4]
[330076178,1718988655002,-683.01,0.00022191,4]
[330076179,1718988655012,-82.70177277,0.00022191,4]
[330076180,1718988655028,-1232.43822723,0.00022191,4]
[330076181,1718988655038,-113.91986726,0.00022191,4]
[330076182,1718988655050,-388.16013274,0.00022191,4]
[330076183,1718988655059,-1495.09,0.00022191,4]
[330076184,1718988655068,-855.41,0.00022191,4]
[330076185,1718988655078,-500.0,0.00022191,4]
[330076186,1718988655092,-604.32,0.00022191,4]
[330076187,1718988655103,-1623.47,0.00022191,4]
[330076188,1718988655114,-500.0,0.00022191,4]
[330076189,1718988655124,-500.0,0.00022191,4]
[330076190,1718988655134,-500.0,0.00022191,4]
[330076191,1718988655144,-1061.18629177,0.00022191,4]
[330076197,1718989078477,-473.45,0.00019219,2]
[330076198,1718989078518,-250.0,0.00020687,2]
[330076199,1718989078558,-1459.43127213,0.00020716,2]
[330076200,1718989078594,-170.37,0.00020817,2]
[330076201,1718989078632,-23880.0,0.00020966,2]
[330076202,1718989078670,-152.23,0.00020995,2]
[330076203,1718989078707,-1250.0,0.00021,2]
[330076204,1718989078760,-297.17,0.00021011,2]
[330076205,1718989078798,-1056.22,0.00021053,2]
[330076206,1718989078836,-250.0,0.00021064,2]
[330076207,1718989078875,-762.39,0.00021295,2]
[330076208,1718989079298,-235.32,0.00021358,2]
[330076209,1718989079339,-3105.79028967,0.00021482,2]
[330076210,1718989079378,-495.41712124,0.00021482,2]
[330076211,1718989079415,-473.45,0.00021483,2]
[330076212,1718989079454,-328.7,0.0002156,2]
[330076213,1718989079492,-154.05,0.00021644,2]
[330076214,1718989079532,-1133.53475068,0.00021799,2]
[330076215,1718989079571,-193.41797284,0.00021817,2]
[330076216,1718989079608,-161.25508038,0.00021817,2]
[330076217,1718989079649,-10000.0,0.00021906,2]
[330076218,1718989079687,-2827.40811708,0.00021906,2]
[330076219,1718989079726,-1262.77288771,0.00021906,2]
[330076220,1718989079762,-293.73549078,0.00021909,2]
[330076221,1718989079799,-369.99779673,0.00021909,2]
[330076222,1718989079837,-3568.39904765,0.0002191,2]
[330076223,1718989079872,-500.0,0.0002191,2]
[330076224,1718989079909,-1069.4164457,0.0002191,2]
[330076225,1718989079947,-499.40340335,0.0002191,2]
[330076226,1718989079990,-1069.4164457,0.0002191,2]
[330076227,1718989080031,-179.17383742,0.00021911,2]
[330076228,1718989080069,-171.62239741,0.00021911,2]
[330076229,1718989080107,-186.66413024,0.00021911,2]
[330076230,1718989080146,-156.43955599,0.00021911,2]
[330076231,1718989080182,-437.90975551,0.00021911,2]
[330076232,1718989080218,-183.41796286,0.00021911,2]
[330076233,1718989080256,-377.18855787,0.00021911,2]
[330076234,1718989080295,-187.89378223,0.00021911,2]
[330076235,1718989080334,-323.22453476,0.00021911,2]
[330076236,1718989080374,-366.0285791,0.00021911,2]
[330076237,1718989080413,-444.2618544,0.00021911,2]
[330076238,1718989080452,-150.89,0.00021912,2]
[330076239,1718989080491,-345.95893679,0.00021916,2]
[330076240,1718989080528,-163.5767579,0.00021916,2]
[330076241,1718989080566,-155.0,0.00021916,2]
[330076242,1718989080606,-185.2371628,0.00021916,2]
[330076243,1718989080654,-326.69444584,0.00021916,2]
[330076244,1718989080702,-500.0,0.00021917,4]
[330076245,1718989080743,-500.0,0.00021917,4]
[330076246,1718989080783,-500.0,0.00021917,4]
[330076247,1718989080825,-500.0,0.00021917,4]
[330076248,1718989080867,-500.0,0.00021917,4]
[330076249,1718989080908,-500.0,0.00021917,4]
[330076250,1718989080949,-514.36,0.00021917,4]
[330076251,1718989080987,-500.0,0.00021917,4]
[330076252,1718989081028,-500.0,0.00021917,4]
[330076253,1718989081068,-500.0,0.00021917,4]
[330076254,1718989081110,-1809.78,0.00021917,4]
[330076255,1718989081149,-1193.59,0.00021917,4]
[330076256,1718989081189,-710.42,0.00021917,4]
[330076257,1718989081232,-610.83666189,0.00021917,4]
[330076258,1718989081272,-952.28,0.00021917,4]
[330076259,1718989081311,-788.5,0.00021917,4]
[330076260,1718989081350,-921.65,0.00021917,4]
[330076261,1718989081390,-738.08,0.00021917,4]
[330076262,1718989081428,-500.0,0.00021917,4]
[330076263,1718989081464,-664.19,0.00021917,4]
[330076264,1718989081502,-1125.8,0.00021917,4]
[330076265,1718989081539,-500.0,0.00021917,4]
[330076266,1718989081576,-948.77,0.00021917,4]
[330076267,1718989081612,-2054.16,0.00021917,4]
[330076268,1718989081648,-1141.26,0.00021917,4]
[330076269,1718989081684,-953.06,0.00021917,4]
[330076270,1718989081721,-500.0,0.00021917,4]
[330076271,1718989081757,-500.0,0.00021917,4]
[330076272,1718989081792,-500.0,0.00021917,4]
[330076273,1718989081834,-1511.18,0.00021917,4]
[330076274,1718989081873,-1244.28,0.00021917,4]
[330076275,1718989081911,-576.67,0.00021917,4]
[330076276,1718989081950,-2173.9,0.00021917,4]
[330076277,1718989081988,-1743.39,0.00021917,4]
[330076278,1718989082027,-540.71,0.00021917,4]
[330076279,1718989082065,-948.86,0.00021917,4]
[330076280,1718989082103,-500.0,0.00021917,4]
[330076281,1718989082141,-500.0,0.00021917,4]
[330076282,1718989082177,-500.0,0.00021917,4]
[330076283,1718989082217,-1674.61,0.00021917,4]
[330076284,1718989082252,-669.81,0.00021917,4]
[330076285,1718989082287,-500.0,0.00021917,4]
[330076286,1718989082325,-500.0,0.00021917,4]
[330076287,1718989082362,-200.0,0.00021917,4]
[330076288,1718989082398,-805.69,0.00021917,4]
[330076289,1718989082438,-500.0,0.00021917,4]
[330076290,1718989082476,-1406.58,0.00021917,4]
[330076291,1718989082512,-500.0,0.00021917,4]
[330076292,1718989082549,-712.34,0.00021917,4]
[330076293,1718989082589,-714.53,0.00021917,4]
[330076294,1718989082628,-1080.92,0.00021917,4]
[330076295,1718989082663,-717.33,0.00021917,4]
[330076296,1718989082699,-500.0,0.00021917,4]
[330076297,1718989082734,-1926.29,0.00021917,4]
[330076298,1718989082770,-500.0,0.00021917,4]
[330076299,1718989082806,-973.55,0.00021917,4]
[330076300,1718989082848,-500.0,0.00021917,4]
[330076301,1718989082884,-500.0,0.00021917,4]
[330076302,1718989082921,-826.02,0.00021917,4]
[330076303,1718989082958,-529.09,0.00021917,4]
[330076304,1718989082996,-500.0,0.00021917,4]
[330076305,1718989083034,-586.43,0.00021917,4]
[330076306,1718989083072,-557.92,0.00021917,4]
[330076307,1718989083111,-2232.82,0.00021917,4]
[330076308,1718989083151,-500.0,0.00021917,4]
[330076309,1718989083189,-500.0,0.00021917,4]
[330076310,1718989083226,-974.98,0.00021917,4]
[330076311,1718989083263,-500.0,0.00021917,4]
[330076312,1718989083299,-500.0,0.00021917,4]
[330076313,1718989083338,-500.0,0.00021917,4]
[330076314,1718989083376,-673.14,0.00021917,4]
[330076315,1718989083417,-233.79395486,0.00021917,4]
[330076316,1718989083457,-595.1,0.00021917,4]
[330076317,1718989083494,-500.0,0.00021917,4]
[330076318,1718989083531,-500.0,0.00021917,4]
[330076319,1718989083572,-842.73,0.00021917,4]
[330076320,1718989083613,-539.71138109,0.00021917,4]
[330076321,1718989083652,-500.0,0.00021917,4]
[330076322,1718989083690,-500.0,0.00021917,4]
[330076323,1718989083727,-500.0,0.00021917,4]
[330076324,1718989083994,-1273.54,0.00021917,4]
[330076325,1718989084035,-500.0,0.00021917,4]
[330076326,1718989084082,-511.16,0.00021917,4]
[330076327,1718989084125,-500.0,0.00021917,8]
[330076328,1718989084166,-875.9,0.00021917,4]
[330076329,1718989084210,-772.24,0.00021917,4]
[330076330,1718989084250,-500.0,0.00021917,4]
[330076331,1718989084292,-1837.22,0.00021917,4]
[330076332,1718989084336,-656.6,0.00021917,4]
[330076333,1718989084376,-1557.92,0.00021917,4]
[330076334,1718989084417,-651.56,0.00021917,4]
[330076335,1718989084459,-500.0,0.00021917,4]
[330076336,1718989084500,-500.0,0.00021917,4]
[330076337,1718989084540,-590.21,0.00021917,4]
[330076338,1718989084580,-725.12,0.00021917,4]
[330076339,1718989084620,-568.75,0.00021917,4]
[330076340,1718989084659,-1561.0,0.00021917,4]
[330076341,1718989084703,-897.44,0.00021917,4]
[330076342,1718989084747,-500.0,0.00021917,4]
[330076343,1718989084787,-768.92,0.00021917,4]
[330076344,1718989084829,-1147.1,0.00021917,4]
[330076345,1718989084872,-643.42,0.00021917,4]
[330076346,1718989084913,-500.0,0.00021917,4]
[330076347,1718989084961,-767.44,0.00021917,4]
[330076348,1718989084999,-675.53,0.00021917,4]
[330076349,1718989085037,-561.39,0.00021917,4]
[330076350,1718989085077,-845.8,0.00021917,4]
[330076351,1718989085113,-500.0,0.00021917,4]
[330076352,1718989085150,-1474.02,0.00021917,4]
[330076353,1718989085189,-500.0,0.00021917,4]
[330076354,1718989085226,-627.86,0.00021917,4]
[330076355,1718989085262,-500.0,0.00021917,4]
[330076356,1718989085299,-500.0,0.00021917,4]
[330076357,1718989085338,-1168.38,0.00021917,4]
[330076358,1718989085375,-500.0,0.00021917,4]
[330076359,1718989085417,-500.0,0.00021917,4]
[330076360,1718989085455,-500.0,0.00021917,4]
[330076361,1718989085490,-561.23,0.00021917,4]
[330076362,1718989085526,-1099.21,0.00021917,4]
[330076363,1718989085564,-500.0,0.00021917,4]
[330076364,1718989085604,-1465.54,0.00021917,4]
[330076365,1718989085642,-500.0,0.00021917,4]
[330076366,1718989085680,-1028.37,0.00021917,4]
[330076367,1718989085719,-747.14,0.00021917,4]
[330076368,1718989085755,-500.0,0.00021917,4]
[330076369,1718989085791,-1226.74,0.00021917,4]
[330076370,1718989085830,-516.53,0.00021917,4]
[330076371,1718989085868,-500.0,0.00021917,4]
[330076372,1718989085907,-500.0,0.00021917,4]
[330076373,1718989085948,-500.0,0.00021917,4]
[330076374,1718989085985,-500.0,0.00021917,4]
[330076375,1718989086023,-500.0,0.00021917,4]
[330076376,1718989086063,-591.78,0.00021917,4]
[330076377,1718989086104,-782.24,0.00021917,4]
[330076378,1718989086145,-520.62,0.00021917,4]
[330076379,1718989086185,-1310.65,0.00021917,4]
[330076380,1718989086223,-541.91,0.00021917,4]
[330076381,1718989086260,-500.0,0.00021917,4]
[330076382,1718989086300,-553.03,0.00021917,4]
[330076383,1718989086340,-724.51,0.00021917,4]
[330076384,1718989086377,-609.9,0.00021917,4]
[330076385,1718989086414,-364.46601227,0.00021917,4]
[330076386,1718989086453,-500.0,0.00021917,4]
[330076387,1718989086490,-723.46,0.00021917,4]
[330076388,1718989086529,-2385.93,0.00021917,4]
[330076389,1718989086568,-500.0,0.00021917,4]
[330076390,1718989086606,-576.04,0.00021917,4]
[330076391,1718989086642,-584.45,0.00021917,4]
[330076392,1718989086688,-500.0,0.00021917,4]
[330076393,1718989086733,-656.02,0.00021917,4]
[330076394,1718989086779,-541.65,0.00021917,4]
[330076395,1718989086826,-500.0,0.00021917,4]
[330076396,1718989086871,-1109.12,0.00021917,4]
[330076397,1718989086912,-3795.07,0.00021917,4]
[330076398,1718989086952,-500.0,0.00021917,4]
[330076399,1718989086991,-746.33,0.00021917,4]
[330076400,1718989087032,-500.0,0.00021917,4]
[330076401,1718989087072,-1974.58,0.00021917,4]
[330076402,1718989087116,-500.0,0.00021917,4]
[330076403,1718989087154,-500.0,0.00021917,4]
[330076404,1718989087190,-891.41,0.00021917,4]
[330076405,1718989087228,-1854.83,0.00021917,4]
[330076406,1718989087266,-872.07,0.00021917,4]
[330076407,1718989087302,-1350.6,0.00021917,4]
[330076408,1718989087338,-638.57,0.00021917,4]
[330076409,1718989087375,-3159.84,0.00021917,4]
[330076410,1718989087414,-1380.76,0.00021917,4]
[330076411,1718989087455,-1144.85,0.00021917,4]
[330076412,1718989087494,-3867.95,0.00021917,4]
[330076413,1718989087531,-500.0,0.00021917,4]
[330076414,1718989087571,-663.89,0.00021917,4]
[330076415,1718989087607,-196.33326359,0.00021917,4]
[330076416,1718989087644,-500.0,0.00021917,4]
[330076417,1718989087683,-500.0,0.00021917,4]
[330076418,1718989087720,-500.0,0.00021917,4]
[330076419,1718989087758,-500.0,0.00021917,4]
[330076420,1718989087797,-521.31,0.00021917,4]
[330076421,1718989087836,-784.12,0.00021917,4]
[330076422,1718989087872,-991.22,0.00021917,4]
[330076423,1718989087908,-616.1,0.00021917,4]
[330076424,1718989087946,-500.0,0.00021917,4]
[330076425,1718989087982,-500.0,0.00021917,4]
[330076426,1718989088020,-500.0,0.00021917,4]
[330076427,1718989088059,-1045.54,0.00021917,4]
[330076428,1718989088095,-2311.03,0.00021917,4]
[330076429,1718989088131,-2210.25,0.00021917,4]
[330076430,1718989088168,-500.0,0.00021917,4]
[330076431,1718989088208,-778.29,0.00021917,4]
[330076432,1718989088245,-500.0,0.00021917,4]
[330076433,1718989088280,-566.67,0.00021917,4]
[330076434,1718989088316,-1007.76,0.00021917,4]
[330076435,1718989088350,-500.0,0.00021917,4]
[330076436,1718989088384,-1209.95,0.00021917,4]
[330076437,1718989088419,-552.43,0.00021917,4]
[330076438,1718989088458,-1062.91,0.00021917,4]
[330076439,1718989088493,-904.29,0.00021917,4]
[330076440,1718989088755,-7542.58,0.00021917,4]
[330076441,1718989088792,-5519.13,0.00021917,4]
[330076442,1718989088830,-1069.16,0.00021917,4]
[330076443,1718989088866,-500.0,0.00021917,4]
[330076444,1718989090262,-571.9,0.00021917,4]
[330076445,1718989090313,-1015.69,0.00021917,4]
[330076446,1718989090356,-500.0,0.00021917,4]
[330076447,1718989090395,-6399.99,0.00021917,4]
[330076448,1718989090438,-1025.68,0.00021917,4]
[330076449,1718989090478,-500.0,0.00021917,4]
[330076450,1718989090522,-500.0,0.00021917,4]
[330076451,1718989090561,-2983.13,0.00021917,4]
[330076452,1718989090599,-500.0,0.00021917,4]
[330076453,1718989090639,-1651.11,0.00021917,4]
[330076454,1718989090688,-1723.58,0.00021917,4]
[330076455,1718989090731,-1326.76,0.00021917,4]
[330076456,1718989090770,-10836.48,0.00021917,4]
[330076457,1718989090809,-500.0,0.00021917,4]
[330076458,1718989090853,-1821.6,0.00021917,4]
[330076459,1718989090894,-12739.48,0.00021917,4]
[330076460,1718989090936,-4285.9,0.00021917,4]
[330076461,1718989090973,-500.0,0.00021917,4]
[330076462,1718989091013,-883.46,0.00021917,4]
[330076463,1718989091052,-972.31,0.00021917,4]
[330076464,1718989091088,-589.13,0.00021917,4]
[330076465,1718989091130,-500.0,0.00021917,4]
[330076466,1718989091166,-500.0,0.00021917,4]
[330076467,1718989091201,-1456.87,0.00021917,4]
[330076468,1718989091238,-1118.96,0.00021917,4]
[330076469,1718989091276,-1799.97,0.00021917,4]
[330076470,1718989091314,-771.36,0.00021917,4]
[330076471,1718989091351,-1698.63,0.00021917,4]
[330076472,1718989091397,-500.0,0.00021917,4]
[330076473,1718989091436,-5941.9,0.00021917,4]
[330076474,1718989091472,-10944.81,0.00021917,4]
[330076475,1718989091507,-500.0,0.00021917,4]
[330076476,1718989091542,-1729.62,0.00021917,4]
[330076477,1718989091578,-500.0,0.00021917,4]
[330076478,1718989091613,-500.0,0.00021917,4]
[330076479,1718989091648,-2700.77,0.00021917,4]
[330076480,1718989091688,-4987.88,0.00021917,4]
[330076481,1718989091726,-500.0,0.00021917,2]
[330076482,1718989091763,-1392.67,0.00021917,4]
[330076483,1718989091798,-500.0,0.00021917,4]
[330076484,1718989091838,-877.61,0.00021917,4]
[330076485,1718989091874,-500.0,0.00021917,4]
[330076486,1718989091913,-500.0,0.00021917,4]
[330076487,1718989091951,-500.0,0.00021917,4]
[330076488,1718989091989,-500.0,0.00021917,4]
[330076489,1718989092027,-500.0,0.00021917,4]
[330076490,1718989092063,-500.0,0.00021917,4]
[330076491,1718989092100,-1043.77,0.00021917,4]
[330076492,1718989092137,-629.96,0.00021917,4]
[330076493,1718989092174,-3830.03,0.00021917,4]
[330076494,1718989092210,-964.86,0.00021917,4]
[330076495,1718989092243,-500.0,0.00021917,4]
[330076496,1718989092279,-40490.59,0.00021917,4]
[330076497,1718989092313,-500.0,0.00021917,4]
[330076498,1718989092347,-500.0,0.00021917,4]
[330076499,1718989092381,-3619.34,0.00021917,4]
[330076500,1718989092415,-500.0,0.00021917,4]
[330076501,1718989092450,-500.0,0.00021917,4]
[330076502,1718989092485,-500.0,0.00021917,4]
[330076503,1718989092522,-500.0,0.00021917,4]
[330076504,1718989092558,-2068.44,0.00021917,4]
[330076505,1718989092593,-626.98,0.00021917,4]
[330076506,1718989092626,-500.0,0.00021917,4]
[330076507,1718989092660,-836.43,0.00021917,4]
[330076508,1718989092699,-2608.58,0.00021917,4]
[330076509,1718989092736,-547.29,0.00021917,4]
[330076510,1718989092772,-500.0,0.00021917,4]
[330076511,1718989092809,-1430.67,0.00021917,4]
[330076512,1718989092850,-543.29,0.00021917,4]
[330076513,1718989092891,-15219.17,0.00021917,4]
[330076514,1718989092934,-1338.96,0.00021917,4]
[330076515,1718989092970,-1349.53,0.00021917,4]
[330076516,1718989093008,-610.09,0.00021917,4]
[330076517,1718989093046,-998.95,0.00021917,4]
[330076518,1718989093083,-500.0,0.00021917,4]
[330076519,1718989093121,-500.0,0.00021917,4]
[330076520,1718989093161,-500.0,0.00021917,4]
[330076521,1718989093200,-761.55,0.00021917,4]
[330076522,1718989093238,-560.39,0.00021917,4]
[330076523,1718989093272,-500.0,0.00021917,4]
[330076524,1718989093308,-439.23267024,0.00021917,4]
[330076525,1718989093343,-500.0,0.00021917,4]
[330076526,1718989093377,-2693.31,0.00021917,4]
[330076527,1718989093412,-500.0,0.00021917,4]
[330076528,1718989093452,-500.0,0.00021917,4]
[330076529,1718989093488,-710.94,0.00021917,4]
[330076530,1718989093526,-749.57,0.00021917,4]
[330076531,1718989093570,-1120.96,0.00021917,4]
[330076532,1718989093613,-500.0,0.00021917,4]
[330076533,1718989093657,-500.0,0.00021917,4]
[330076534,1718989093702,-1162.11,0.00021917,4]
[330076535,1718989093740,-500.0,0.00021917,4]
[330076536,1718989093777,-500.0,0.00021917,4]
[330076537,1718989093814,-829.28,0.00021917,4]
[330076538,1718989093856,-500.0,0.00021917,4]
[330076539,1718989093898,-3113.59,0.00021917,4]
[330076540,1718989093939,-1612.54,0.00021917,4]
[330076541,1718989093976,-500.0,0.00021917,4]
[330076542,1718989094012,-797.24,0.00021917,4]
[330076543,1718989094046,-500.0,0.00021917,4]
[330076544,1718989094080,-617.5,0.00021917,4]
[330076545,1718989094117,-500.0,0.00021917,4]
[330076546,1718989094154,-17782.52,0.00021917,4]
[330076547,1718989094190,-500.0,0.00021917,4]
[330076548,1718989094225,-500.0,0.00021917,4]
[330076549,1718989094261,-836.32,0.00021917,4]
[330076550,1718989094297,-564.84,0.00021917,4]
[330076551,1718989094335,-1031.55,0.00021917,4]
[330076552,1718989094370,-500.0,0.00021917,4]
[330076553,1718989094405,-628.14,0.00021917,4]
[330076554,1718989094440,-500.0,0.00021917,4]
[330076555,1718989094477,-678.83,0.00021917,4]
[330076556,1718989094749,-1526.41,0.00021917,4]
[330076557,1718989094788,-500.0,0.00021917,4]
[330076558,1718989094829,-6327.26,0.00021917,4]
[330076559,1718989094871,-798.04,0.00021917,4]
[330076560,1718989094911,-1305.06,0.00021917,4]
[330076561,1718989094952,-735.75,0.00021917,4]
[330076562,1718989094992,-6627.63,0.00021917,4]
[330076563,1718989095032,-1004.85,0.00021917,4]
[330076564,1718989095069,-500.0,0.00021917,4]
[330076565,1718989095108,-500.0,0.00021917,4]
[330076566,1718989095146,-5698.04,0.00021917,4]
[330076567,1718989095182,-500.0,0.00021917,4]
[330076568,1718989095219,-7488.18,0.00021917,4]
[330076569,1718989095255,-1277.85,0.00021917,4]
[330076570,1718989095293,-3301.6,0.00021917,4]
[330076571,1718989095330,-500.0,0.00021917,4]
[330076572,1718989095369,-1710.84,0.00021917,4]
[330076573,1718989095407,-500.0,0.00021917,4]
[330076574,1718989095445,-1936.6,0.00021917,4]
[330076575,1718989095480,-811.25,0.00021917,4]
[330076576,1718989095516,-500.0,0.00021917,4]
[330076577,1718989095552,-500.0,0.00021917,4]
[330076578,1718989095587,-754.93,0.00021917,4]
[330076579,1718989095624,-5600.05,0.00021917,4]
[330076580,1718989095660,-826.67,0.00021917,4]
[330076581,1718989095697,-500.0,0.00021917,4]
[330076582,1718989095733,-888.88,0.00021917,4]
[330076583,1718989095770,-500.0,0.00021917,4]
[330076584,1718989095810,-1754.5,0.00021917,4]
[330076585,1718989095847,-595.79,0.00021917,4]
[330076586,1718989095883,-1644.95,0.00021917,4]
[330076587,1718989095921,-500.0,0.00021917,4]
[330076588,1718989095962,-738.1,0.00021917,4]
[330076589,1718989096001,-500.0,0.00021917,4]
[330076590,1718989096039,-500.0,0.00021917,4]
[330076591,1718989096085,-500.0,0.00021917,4]
[330076592,1718989096125,-1205.55,0.00021917,4]
[330076593,1718989096164,-973.12,0.00021917,4]
[330076594,1718989096207,-1597.69,0.00021917,4]
[330076595,1718989096246,-500.0,0.00021917,4]
[330076596,1718989096282,-2373.33,0.00021917,4]
[330076597,1718989096318,-500.0,0.00021917,4]
[330076598,1718989096357,-500.0,0.00021917,4]
[330076599,1718989096395,-500.0,0.00021917,2]
[330076600,1718989096432,-500.0,0.00021917,4]
[330076601,1718989096471,-521.5,0.00021917,7]
[330076602,1718989096508,-717.64,0.00021917,4]
[330076603,1718989096545,-2133.14,0.00021917,4]
[330076604,1718989096587,-500.0,0.00021917,4]
[330076605,1718989096631,-5729.69,0.00021917,4]
[330076606,1718989096677,-500.0,0.00021917,4]
[330076607,1718989096726,-522.35,0.00021917,4]
[330076608,1718989096770,-574.5,0.00021917,4]
[330076609,1718989096807,-610.9,0.00021917,4]
[330076610,1718989096847,-1312.03,0.00021917,4]
[330076611,1718989096886,-985.93,0.00021917,4]
[330076612,1718989096925,-500.0,0.00021917,4]
[330076613,1718989096965,-5127.76,0.00021917,4]
[330076614,1718989097005,-592.91729563,0.00021917,4]
[330076615,1718989097044,-635.71,0.00021917,4]
[330076616,1718989097081,-500.0,0.00021917,4]
[330076617,1718989097125,-668.33,0.00021917,4]
[330076618,1718989097164,-500.0,0.00021917,4]
[330076619,1718989097204,-1140.36,0.00021917,4]
[330076620,1718989097242,-500.0,0.00021917,4]
[330076621,1718989097280,-500.0,0.00021917,4]
[330076622,1718989097318,-1185.18,0.00021917,4]
[330076623,1718989097356,-2279.84,0.00021917,4]
[330076624,1718989097393,-608.85,0.00021917,4]
[330076625,1718989097434,-3974.55,0.00021917,4]
[330076626,1718989097470,-1519.08,0.00021917,4]
[330076627,1718989097508,-2138.7,0.00021917,4]
[330076628,1718989097545,-548.21,0.00021917,4]
[330076629,1718989097582,-7738.33,0.00021917,4]
[330076630,1718989097619,-500.0,0.00021917,4]
[330076631,1718989097655,-1499.69,0.00021917,4]
[330076632,1718989097692,-2062.98,0.00021917,4]
[330076633,1718989097729,-500.0,0.00021917,4]
[330076634,1718989097766,-500.0,0.00021917,4]
[330076635,1718989097803,-500.0,0.00021917,4]
[330076636,1718989097844,-679.56,0.00021917,4]
[330076637,1718989097880,-3373.6,0.00021917,4]
[330076638,1718989097923,-500.0,0.00021917,4]
[330076639,1718989097964,-500.0,0.00021917,4]
[330076640,1718989098007,-1110.5,0.00021917,4]
[330076641,1718989098044,-1378.85,0.00021917,4]
[330076642,1718989098083,-852.13,0.00021917,4]
[330076643,1718989098122,-500.0,0.00021917,4]
[330076644,1718989098159,-801.39,0.00021917,4]
[330076645,1718989098195,-6808.95,0.00021917,4]
[330076646,1718989098230,-500.0,0.00021917,4]
[330076647,1718989098271,-500.0,0.00021917,4]
[330076648,1718989098305,-4502.87,0.00021917,4]
[330076649,1718989098341,-922.79,0.00021917,4]
[330076650,1718989098377,-780.77,0.00021917,4]
[330076651,1718989098412,-529.35,0.00021917,4]
[330076652,1718989098448,-500.0,0.00021917,4]
[330076653,1718989098489,-582.75,0.00021917,4]
[330076654,1718989098530,-500.0,0.00021917,4]
[330076655,1718989098567,-500.0,0.00021917,4]
[330076656,1718989098604,-500.0,0.00021917,4]
[330076657,1718989098641,-1314.08,0.00021917,4]
[330076658,1718989098678,-10013.26,0.00021917,4]
[330076659,1718989098718,-500.0,0.00021917,4]
[330076660,1718989098758,-900.38,0.00021917,4]